bitfinex/quotes_SOLUSD_20250228
["timestamp","ask_amount","ask_price","bid_price","bid_amount"]
[1740781018364,0.03,147.81,147.77,0.063]
[1740781020292,20.0,147.79,147.77,0.063]
[1740781022105,5.4134,147.78,147.77,0.063]
[1740781022275,86.1134,147.78,147.77,0.063]
[1740781022473,80.7,147.78,147.77,0.063]
[1740781029900,25.4134,147.78,147.77,0.063]
[1740781030192,2.0,147.77,147.74,0.063]
[1740781030397,1.5552,147.75,147.74,0.063]
[1740781030699,8.3163,147.74,147.72,0.063]
[1740781030901,114.08,147.73,147.72,0.063]
[1740781031296,119.4952,147.73,147.72,0.063]
[1740781032190,140.14484886,147.73,147.72,0.0001]
[1740781032394,142.14484886,147.73,147.72,0.0001]
[1740781032588,148.46484886,147.73,147.72,0.0001]
[1740781034605,153.93975424,147.73,147.72,0.0001]
[1740781037184,151.93975424,147.73,147.72,0.0001]
[1740781037388,153.93975424,147.73,147.72,0.0001]
[1740781037583,20.0,147.7,147.68,0.063]
[1740781037783,20.0,147.69,147.68,0.063]
[1740781039795,25.4167,147.69,147.68,0.063]
[1740781044004,114.08,147.73,147.68,0.063]
[1740781045616,119.4953,147.73,147.68,0.063]
[1740781046913,80.7,147.72,147.68,0.063]
[1740781047616,80.7,147.71,147.68,0.063]
[1740781047916,80.7,147.71,147.63,13.1567]
[1740781047917,20.0,147.66,147.63,0.063]
[1740781048090,5.4185,147.64,147.63,0.063]
[1740781050201,5.4185,147.64,147.62,0.063]
[1740781050896,5.4185,147.64,147.62,0.0001]
[1740781050897,9.4185,147.64,147.62,0.0001]
[1740781051296,80.7,147.63,147.62,0.0001]
[1740781051506,9.4185,147.64,147.62,0.0001]
[1740781051916,7.4185,147.64,147.62,0.0001]
[1740781052213,9.4185,147.64,147.62,0.0001]
[1740781052415,114.16,147.63,147.62,0.0001]
[1740781052996,119.5789,147.63,147.62,0.0001]
[1740781056518,20.0,147.6,147.59,0.0001]
[1740781056703,26.32,147.6,147.59,0.0001]
[1740781057520,25.82,147.6,147.59,0.0001]
[1740781057723,31.24,147.6,147.59,0.0001]
[1740781058032,11.74,147.6,147.59,0.0001]
[1740781058222,17.06989724,147.6,147.59,0.0001]
[1740781059413,17.06989724,147.6,147.57,0.02]
[1740781059915,20.0,147.59,147.57,0.02]
[1740781060219,20.0,147.58,147.57,0.02]
[1740781060921,25.4207,147.58,147.57,0.02]
[1740781064102,5.4193,147.62,147.57,0.02]
[1740781064802,20.0,147.59,147.57,0.02]
[1740781066824,114.22,147.61,147.57,0.02]
[1740781067606,194.92,147.61,147.57,0.02]
[1740781068223,200.3397,147.61,147.57,0.02]
[1740781069026,194.92,147.61,147.57,0.02]
[1740781069222,194.92,147.61,147.58,20.0]
[1740781069529,114.22,147.61,147.57,0.02]
[1740781069820,0.063,147.64,147.58,18.64964886]
[1740781070021,0.063,147.64,147.6,18.64964886]
[1740781071026,0.063,147.64,147.61,5.4196]
[1740781071529,0.063,147.64,147.6,24.06954886]
[1740781071723,0.063,147.64,147.61,1.5552]
[1740781071929,0.063,147.64,147.62,18.64964886]
[1740781076033,0.063,147.64,147.62,24.06884886]
[1740781078226,0.063,147.64,147.62,18.64964886]
[1740781082635,0.063,147.64,147.62,24.06884886]
[1740781084730,0.063,147.64,147.62,105.06884886]
[1740781084914,80.7,147.71,147.62,105.06884886]
[1740781084915,80.7,147.71,147.64,18.64964886]
[1740781085113,114.18,147.72,147.64,99.64964886]
[1740781086038,0.03,147.73,147.66,18.64964886]
[1740781086227,0.03,147.73,147.7,6.1332]
[1740781086429,0.03,147.73,147.72,18.64964886]
[1740781087622,0.03,147.73,147.72,24.06524886]
[1740781088121,0.03,147.73,147.72,18.64964886]
[1740781089041,0.03,147.73,147.71,1.5476]
[1740781089247,0.03,147.73,147.72,18.64964886]
[1740781090443,0.063,147.79,147.74,22.64964886]
[1740781090632,0.063,147.79,147.76,18.64964886]
[1740781091736,0.063,147.79,147.78,18.64964886]
[1740781092323,0.063,147.79,147.78,239.19724886]
[1740781092742,0.03,147.8,147.79,26.78284886]
[1740781092945,0.03,147.8,147.79,34.52301803]
[1740781093431,0.03,147.8,147.79,33.10284886]
[1740781093746,0.03,147.8,147.79,38.51584886]
[1740781093930,0.03,147.8,147.79,31.10284886]
[1740781094242,0.03,147.8,147.79,36.51584886]
[1740781095258,0.03,147.8,147.79,24.78284886]
[1740781095552,18.9322,147.88,147.8,18.64964886]
[1740781096723,5.4078,147.88,147.8,18.64964886]
[1740781097746,5.4078,147.88,147.8,24.06224886]
[1740781097948,5.4078,147.88,147.8,105.06224886]
[1740781098138,87.02,147.89,147.8,105.06224886]
[1740781098323,5.4087,147.91,147.84,18.64964886]
[1740781098524,5.4087,147.91,147.84,99.64964886]
[1740781100327,80.7,147.9,147.83,18.64964886]
[1740781100846,80.7,147.89,147.82,6.32]
[1740781101054,20.0,147.85,147.78,82.5476]
[1740781101224,20.0,147.85,147.8,18.64964886]
[1740781101424,5.4112,147.84,147.8,18.64964886]
[1740781103441,5.4112,147.84,147.78,81.0]
[1740781104445,80.7,147.83,147.76,6.1072]
[1740781104648,80.7,147.83,147.74,1.6148]
[1740781104848,87.0,147.83,147.75,18.64964886]
[1740781105747,5.4119,147.82,147.75,18.64964886]
[1740781105950,86.1119,147.82,147.75,18.64964886]
[1740781106243,86.1119,147.82,147.78,0.063]
[1740781108549,99.6418,147.82,147.78,0.063]
[1740781109665,5.4119,147.82,147.78,0.063]
[1740781109833,5.4117,147.83,147.78,0.063]
[1740781110835,86.1113,147.84,147.78,0.063]
[1740781111968,99.6394,147.84,147.78,0.063]
[1740781113081,80.7,147.83,147.78,0.063]
[1740781113252,87.0,147.83,147.78,0.063]
[1740781114168,5.4123,147.81,147.78,0.063]
[1740781114364,86.1123,147.81,147.78,0.063]
[1740781114768,1.5407,147.79,147.78,0.063]
[1740781116565,87.6537,147.79,147.78,0.063]
[1740781117740,194.76,147.82,147.78,0.063]
[1740781118148,114.06,147.82,147.78,0.063]
[1740781118641,86.1109,147.85,147.78,0.063]
[1740781118841,80.7,147.85,147.78,0.063]
[1740781119377,86.1108,147.85,147.78,0.063]
[1740781120177,80.7,147.85,147.78,5.4764]
[1740781120358,86.1109,147.85,147.78,5.4764]
[1740781120955,80.7,147.85,147.78,5.4764]
[1740781121467,86.1109,147.85,147.78,5.4764]
[1740781121672,80.7,147.85,147.78,5.4764]
[1740781121872,0.03,147.88,147.79,18.64964886]
[1740781122055,0.03,147.88,147.83,40.31064886]
[1740781122255,0.03,147.88,147.84,30.36956114]
[1740781122461,0.03,147.88,147.85,6.4582]
[1740781123763,0.03,147.88,147.86,18.64964886]
[1740781124153,0.03,147.95,147.91,20.0]
[1740781124379,0.03,147.95,147.94,26.4582]
[1740781124872,0.03,147.95,147.94,45.10784886]
[1740781125253,0.03,147.95,147.94,25.10784886]
[1740781127486,0.03,147.95,147.94,18.64964886]
[1740781129177,0.03,147.95,147.94,99.64964886]
[1740781129875,0.03,147.95,147.94,237.64964886]
[1740781130681,0.03,147.95,147.94,243.05714886]
[1740781132076,0.03,147.95,147.94,237.64964886]
[1740781132988,0.03,147.95,147.94,245.05714886]
[1740781133189,0.03,147.98,147.97,22.0]
[1740781133397,0.03,147.99,147.98,18.64964886]
[1740781133602,0.03,147.99,147.98,24.0680023]
[1740781134098,0.03,147.99,147.98,248.4741023]
[1740781134276,0.03,147.99,147.98,247.05574886]
[1740781137597,114.04,148.09,148.01,38.64964886]
[1740781137799,119.4422,148.09,148.01,257.64964886]
[1740781138814,119.4422,148.09,148.02,24.05424886]
[1740781140686,114.04,148.09,148.02,243.05424886]
[1740781140887,114.04,148.09,148.02,245.05424886]
[1740781141087,5.4317,148.1,148.02,251.35424886]
[1740781142202,0.03,148.1,148.02,251.35424886]
[1740781142999,0.03,148.1,148.06,20.0]
[1740781143303,0.03,148.1,148.07,18.64964886]
[1740781144803,0.03,148.1,148.09,18.64964886]
[1740781145005,0.03,148.1,148.09,99.64964886]
[1740781145889,0.03,148.1,148.09,105.05174886]
[1740781146097,0.03,148.1,148.06,81.0]
[1740781146502,0.03,148.1,148.07,18.64964886]
[1740781147091,0.03,148.1,148.02,86.4045]
[1740781147603,0.03,148.1,148.03,18.64964886]
[1740781147991,5.4317,148.1,148.03,18.64964886]
[1740781149699,80.7,148.09,147.99,99.0905]
[1740781149902,80.7,148.09,148.0,18.64964886]
[1740781151499,5.4024,148.08,148.0,18.64964886]
[1740781151684,18.9086,148.08,148.0,18.64964886]
[1740781151890,80.7,148.07,147.97,86.4064]
[1740781152107,6.3265,148.05,147.97,86.4064]
[1740781152307,6.3265,148.05,147.98,18.64964886]
[1740781153213,5.4039,148.04,147.98,18.64964886]
[1740781153414,7.0545,148.04,147.97,81.0]
[1740781153805,80.7,148.03,147.96,18.64964886]
[1740781154412,80.7,148.03,148.02,0.063]
[1740781154788,86.1043,148.03,148.02,0.063]
[1740781155695,1.6506,148.04,148.02,0.063]
[1740781157717,86.1024,148.08,148.02,18.71264886]
[1740781159511,80.7,148.07,148.02,0.063]
[1740781160213,20.0,148.03,148.02,0.063]
[1740781160608,21.6319,148.03,148.02,0.063]
[1740781161107,92.4037,148.05,148.02,0.063]
[1740781161302,5.4034,148.06,148.02,0.063]
[1740781161720,86.1029,148.07,148.02,0.063]
[1740781163497,80.7,148.06,148.02,0.063]
[1740781163901,20.0,148.03,148.02,0.063]
[1740781164803,20.0,148.04,148.02,0.063]
[1740781164999,5.4043,148.03,148.02,0.063]
[1740781165211,25.4043,148.03,148.02,0.063]
[1740781166501,11.7502,148.03,148.02,0.0001]
[1740781167335,13.4009,148.03,148.02,0.0001]
[1740781167627,20.0,148.0,147.9,99.9313]
[1740781168002,26.9116,148.03,147.91,20.64964886]
[1740781168003,13.4012,148.03,147.91,20.64964886]
[1740781168916,1.6507,148.03,147.93,18.64964886]
[1740781169117,7.055,148.03,147.95,18.64964886]
[1740781169327,7.055,148.03,147.95,99.64964886]
[1740781170125,7.055,148.03,147.96,5.4068]
[1740781170705,7.055,148.03,147.95,81.0]
[1740781170917,7.055,148.03,147.95,86.4071]
[1740781171434,7.055,148.03,147.96,18.64964886]
[1740781172144,7.055,148.03,147.96,24.05644886]
[1740781172831,7.055,148.03,147.96,18.64964886]
[1740781173423,7.055,148.03,147.95,81.0]
[1740781173612,80.7,148.02,147.94,6.3]
[1740781174013,5.405,148.01,147.94,18.64964886]
[1740781174228,5.405,148.01,147.94,24.05714886]
[1740781174431,5.405,148.01,147.94,18.64964886]
[1740781175027,80.7,148.02,147.94,5.4075]
[1740781175413,80.7,148.02,147.94,18.9264]
[1740781175818,86.1047,148.02,147.94,18.9264]
[1740781177432,86.1047,148.02,147.94,18.9894]
[1740781177630,86.1047,148.02,147.94,5.4705]
[1740781178145,80.7,148.01,147.94,5.4705]
[1740781178437,80.7,148.01,147.94,0.063]
[1740781179317,6.3459,148.0,147.94,0.063]
[1740781179522,80.7,147.99,147.94,0.063]
[1740781179837,7.0572,147.97,147.94,0.063]
[1740781180036,80.7,147.96,147.94,0.063]
[1740781181022,86.107,147.96,147.94,0.063]
[1740781181329,86.1068,147.96,147.94,0.063]
[1740781182137,80.7,147.95,147.94,0.063]
[1740781183158,86.1072,147.95,147.94,0.063]
[1740781184433,5.4072,147.95,147.94,0.063]
[1740781184643,11.7072,147.95,147.94,0.0001]
[1740781184929,11.7072,147.95,147.88,0.063]
[1740781184930,20.0,147.92,147.88,0.063]
[1740781185118,2.0,147.93,147.88,0.063]
[1740781185319,1.6328,147.9,147.88,0.063]
[1740781186531,5.4094,147.89,147.88,0.063]
[1740781187915,1.6328,147.9,147.88,0.063]
[1740781188123,5.4079,147.93,147.88,0.063]
[1740781188632,12.6159,147.94,147.88,0.063]
[1740781188633,11.7076,147.94,147.88,0.063]
[1740781189031,80.7,147.92,147.88,0.063]
[1740781189440,80.7,147.92,147.88,5.4727]
[1740781191621,80.73,147.94,147.89,18.64964886]
[1740781192041,0.03,147.94,147.89,18.64964886]
[1740781192435,0.03,147.94,147.89,99.64964886]
[1740781193928,0.03,147.94,147.91,18.64964886]
[1740781195047,0.03,147.94,147.93,18.64964886]
[1740781196762,0.03,147.94,147.91,5.4086]
[1740781197262,0.03,147.94,147.92,18.64964886]
[1740781198174,0.03,147.94,147.92,24.05774886]
[1740781199248,0.03,147.94,147.92,105.05774886]
[1740781199448,0.03,147.94,147.92,111.26604886]
[1740781199653,0.03,147.94,147.92,112.78854886]
[1740781199846,0.03,147.94,147.93,6.3]
[1740781200346,80.73,148.03,147.94,18.64964886]
[1740781200538,0.03,148.03,147.98,18.64964886]
[1740781200726,0.03,148.03,147.98,99.64964886]
[1740781201133,0.03,148.03,148.0,18.64964886]
[1740781204551,0.03,148.03,147.99,18.64964886]
[1740781204847,0.03,148.03,147.99,24.78954886]
[1740781205054,0.03,148.03,147.99,26.44424886]
[1740781205247,0.03,148.03,148.0,5.4054]
[1740781207254,0.03,148.03,147.99,31.84984886]
[1740781207854,0.03,148.03,147.99,26.44424886]
[1740781208046,0.03,148.03,147.99,18.64964886]
[1740781213051,0.03,148.03,147.99,105.05524886]
[1740781214261,0.03,148.03,148.02,38.64964886]
[1740781214556,0.03,148.03,148.02,119.64964886]
[1740781214760,0.03,148.03,148.02,129.51104886]
[1740781214963,0.03,148.03,148.02,134.91564886]
[1740781216563,0.03,148.03,148.02,274.33372221]
[1740781216765,0.03,148.03,148.02,272.91564886]
[1740781216956,0.03,148.03,148.02,274.91564886]
[1740781217361,0.0001,148.03,148.02,274.91564886]
[1740781219171,0.0001,148.03,148.02,278.31129137]
[1740781221469,0.0001,148.03,148.02,276.31129137]
[1740781222372,0.0001,148.03,148.02,278.31129137]
[1740781223369,0.0001,148.03,148.02,296.67129137]
[1740781223571,0.0001,148.03,148.02,298.67129137]
[1740781224769,0.03,148.09,148.02,298.67129137]
[1740781224770,0.03,148.09,148.07,18.64964886]
[1740781225075,0.03,148.09,148.08,6.28]
[1740781225277,0.03,148.09,148.08,24.92964886]
[1740781226375,0.03,148.09,148.08,30.33204886]
[1740781229986,0.03,148.09,148.08,111.33204886]
[1740781233553,0.03,148.09,148.08,114.68229491]
[1740781249685,0.03,148.09,148.08,105.92964886]
[1740781249894,0.03,148.09,148.08,105.05204886]
[1740781250074,0.03,148.09,148.08,99.64964886]
[1740781251184,0.03,148.09,148.08,18.64964886]
[1740781251379,0.03,148.09,148.06,81.0]
[1740781251781,1.5811,148.09,148.06,81.0]
[1740781252501,1.5811,148.09,148.03,0.063]
[1740781253074,1.5811,148.09,148.03,18.71264886]
[1740781253995,5.4024,148.08,148.03,18.71264886]
[1740781256903,86.8523,148.07,148.03,0.063]
[1740781257579,5.4032,148.06,148.03,0.063]
[1740781259001,92.2552,148.07,148.03,0.063]
[1740781259389,80.7,148.07,148.03,0.063]
[1740781259782,1.5811,148.09,148.03,0.063]
[1740781259783,1.5811,148.09,148.04,18.64964886]
[1740781261197,0.03,148.09,148.04,18.64964886]
[1740781261885,0.03,148.09,148.06,18.64964886]
[1740781265793,0.03,148.09,148.03,86.4669]
[1740781266105,0.03,148.09,148.03,81.063]
[1740781266498,21.5449,148.08,148.03,0.063]
[1740781266699,82.2449,148.08,148.03,0.063]
[1740781267307,5.4028,148.07,148.03,0.063]
[1740781268589,20.0,148.04,148.03,0.063]
[1740781268796,80.7,148.05,148.03,0.063]
[1740781269810,5.4039,148.04,148.03,0.063]
[1740781270403,11.515,148.04,148.03,0.063]
[1740781270990,31.515,148.04,148.03,0.063]
[1740781271186,20.0,148.03,148.02,0.063]
[1740781271405,20.0,148.01,147.94,0.063]
[1740781271796,5.4054,148.0,147.94,0.063]
[1740781272599,7.6112,147.99,147.94,0.063]
[1740781272992,5.4061,147.98,147.94,0.063]
[1740781276303,80.7,147.97,147.94,0.063]
[1740781276814,80.7,147.96,147.94,0.063]
[1740781277817,86.1068,147.96,147.94,0.063]
[1740781278907,80.7,147.95,147.94,0.063]
[1740781280095,86.1072,147.95,147.94,0.063]
[1740781280496,80.7,147.95,147.94,0.063]
[1740781285124,86.1072,147.95,147.94,0.063]
[1740781292420,5.4072,147.95,147.94,0.063]
[1740781293136,20.0,147.95,147.94,0.063]
[1740781294926,25.4072,147.95,147.94,0.063]
[1740781295147,25.4072,147.95,147.94,0.0001]
[1740781301222,194.64,147.96,147.94,0.0001]
[1740781302426,113.94,147.96,147.94,0.0001]
[1740781305348,119.347,147.96,147.94,0.0001]
[1740781305847,5.407,147.96,147.94,0.0001]
[1740781307438,5.4065,147.97,147.94,0.0001]
[1740781309751,20.0,147.95,147.94,0.0001]
[1740781309952,25.4072,147.95,147.94,0.0001]
[1740781318049,27.4072,147.95,147.94,0.0001]
[1740781319759,48.05684886,147.95,147.94,0.0001]
[1740781321639,49.58954886,147.95,147.94,0.0001]
[1740781322046,24.0,147.89,147.88,0.0001]
[1740781322354,28.26,147.89,147.87,0.0001]
[1740781322545,26.26,147.89,147.87,0.0001]
[1740781322746,30.26,147.89,147.87,0.0001]
[1740781323355,22.64964886,147.88,147.87,0.0001]
[1740781323659,58.78521404,147.88,147.87,0.0001]
[1740781323863,64.19491404,147.88,147.87,0.0001]
[1740781325344,20.0,147.81,147.79,0.063]
[1740781325540,80.7,147.8,147.79,0.063]
[1740781325745,46.06234886,147.8,147.79,0.063]
[1740781326261,20.64964886,147.79,147.78,0.063]
[1740781326451,22.64964886,147.79,147.78,0.0001]
[1740781327552,22.64964886,147.79,147.73,0.063]
[1740781327553,20.0,147.76,147.73,0.063]
[1740781327862,20.0,147.74,147.73,0.063]
[1740781329249,25.4149,147.74,147.73,0.063]
[1740781329642,25.4149,147.74,147.7,6.2533985]
[1740781330473,80.7,147.73,147.7,6.2533985]
[1740781332048,80.7,147.76,147.71,18.64964886]
[1740781332246,5.413,147.79,147.72,5.4156]
[1740781332449,80.7,147.78,147.74,1.6447]
[1740781332967,5.4124,147.81,147.75,18.64964886]
[1740781332968,80.7,147.81,147.75,18.64964886]
[1740781333162,80.7,147.81,147.76,6.4525]
[1740781334084,80.7,147.81,147.77,18.64964886]
[1740781334252,113.98,147.83,147.78,5.4134]
[1740781335166,80.7,147.85,147.79,18.64964886]
[1740781336469,80.7,147.85,147.8,5.4127]
[1740781340377,80.7,147.85,147.81,1.5779]
[1740781342059,80.7,147.85,147.81,6.99]
[1740781344183,80.763,147.85,147.81,6.99]
[1740781348785,80.763,147.85,147.81,1.5779]
[1740781348992,86.1739,147.85,147.81,1.5779]
[1740781351872,86.1115,147.84,147.81,1.5779]
[1740781356194,86.1745,147.84,147.81,1.5779]
[1740781357893,86.1745,147.84,147.78,5.4133]
[1740781362298,86.1745,147.84,147.77,25.67824886]
[1740781362501,80.7,147.83,147.77,20.26454886]
[1740781362699,80.7,147.83,147.77,1.6149]
[1740781364501,5.4119,147.82,147.77,1.6149]
[1740781369602,80.7,147.81,147.77,1.6149]
[1740781369807,80.7,147.8,147.77,1.6149]
[1740781370115,5.413,147.79,147.76,6.4525]
[1740781372511,80.7,147.8,147.76,11.8666]
[1740781372695,80.7,147.8,147.77,18.64964886]
[1740781374309,80.7,147.8,147.78,5.4134]
[1740781375419,80.7,147.8,147.78,5.4134]
[1740781375618,86.1116,147.83,147.78,5.4134]
[1740781378719,80.7,147.83,147.78,5.4134]
[1740781379104,0.063,147.84,147.79,20.15614886]
[1740781380320,0.063,147.84,147.8,6.2207]
[1740781380899,0.063,147.84,147.81,5.4123]
[1740781381917,0.063,147.84,147.82,18.64964886]
[1740781382915,0.063,147.84,147.83,24.06124886]
[1740781383610,0.063,147.84,147.83,112.85564886]
[1740781383809,0.063,147.85,147.84,18.64964886]
[1740781384004,0.063,147.89,147.88,18.64964886]
[1740781384198,0.063,147.89,147.88,26.44404886]
[1740781384922,0.063,147.89,147.88,31.85374886]
[1740781400933,0.063,147.89,147.87,109.26]
[1740781400934,0.063,147.89,147.84,81.0]
[1740781401240,0.063,147.89,147.83,6.3359]
[1740781401745,80.7,147.88,147.78,87.3359]
[1740781401911,80.7,147.88,147.78,92.7492]
[1740781402109,80.7,147.88,147.81,20.0]
[1740781402311,80.7,147.87,147.81,20.0]
[1740781403142,5.4105,147.86,147.81,20.0]
[1740781403647,99.6368,147.86,147.78,87.3359]
[1740781403819,80.7,147.85,147.79,18.64964886]
[1740781404022,80.7,147.85,147.76,18.64964886]
[1740781404227,80.7,147.84,147.76,18.64964886]
[1740781404949,80.7,147.84,147.75,81.0]
[1740781404950,6.26,147.83,147.75,81.0]
[1740781405130,99.6418,147.82,147.73,18.64964886]
[1740781405448,80.7,147.81,147.72,6.26]
[1740781405621,80.7,147.8,147.73,18.64964886]
[1740781406342,5.413,147.79,147.73,18.64964886]
[1740781406556,18.9457,147.79,147.73,18.64964886]
[1740781406731,80.7,147.78,147.71,6.3359]
[1740781406932,80.7,147.77,147.69,81.03]
[1740781407142,80.7,147.77,147.72,20.0]
[1740781407547,86.1141,147.76,147.69,0.03]
[1740781407728,80.7,147.75,147.69,0.03]
[1740781407935,80.7,147.74,147.69,0.03]
[1740781408754,80.7,147.73,147.69,0.03]
[1740781409253,86.96,147.73,147.69,0.03]
[1740781409552,18.9547,147.72,147.69,0.03]
[1740781409754,80.7,147.71,147.69,0.03]
[1740781410341,80.7,147.7,147.69,0.03]
[1740781410541,80.7,147.7,147.63,0.063]
[1740781410749,82.294,147.69,147.63,0.063]
[1740781410956,6.26,147.68,147.63,0.063]
[1740781411131,80.7,147.67,147.63,0.063]
[1740781411337,80.7,147.66,147.63,0.063]
[1740781411732,80.7,147.65,147.63,0.063]
[1740781411937,86.1182,147.65,147.63,0.063]
[1740781412438,91.50987682,147.65,147.63,0.063]
[1740781413755,107.77444886,147.64,147.63,0.063]
[1740781413955,27.07444886,147.64,147.63,0.063]
[1740781414470,27.07444886,147.64,147.58,0.03]
[1740781414759,88.96,147.63,147.58,0.03]
[1740781414961,20.0,147.6,147.58,0.03]
[1740781415136,80.7,147.59,147.58,0.03]
[1740781415544,86.1204,147.59,147.58,0.03]
[1740781418966,5.4204,147.59,147.58,0.03]
[1740781420171,7.4204,147.59,147.57,0.02]
[1740781420356,6.26,147.58,147.57,0.02]
[1740781421256,11.6807,147.58,147.57,0.02]
[1740781424265,32.33034886,147.58,147.57,0.02]
[1740781424563,146.53034886,147.58,147.57,0.02]
[1740781424870,181.13321404,147.58,147.57,0.02]
[1740781425070,183.13321404,147.58,147.57,0.02]
[1740781425971,146.53034886,147.58,147.57,0.02]
[1740781426867,125.8807,147.58,147.57,0.02]
[1740781434061,20.0,147.55,147.48,18.64964886]
[1740781434259,80.7,147.54,147.48,18.64964886]
[1740781435056,80.7,147.54,147.48,24.07404886]
[1740781436180,86.1223,147.54,147.48,24.07404886]
[1740781441687,86.1223,147.54,147.49,1.6262]
[1740781441893,0.063,147.59,147.5,20.64964886]
[1740781442071,0.063,147.59,147.52,18.64964886]
[1740781443890,0.063,147.59,147.52,24.07224886]
[1740781444064,80.7,147.58,147.51,6.1019]
[1740781445586,86.1209,147.58,147.51,6.1019]
[1740781445767,80.7,147.57,147.49,1.6262]
[1740781445971,20.0,147.54,147.47,6.4671]
[1740781446269,80.7,147.53,147.47,6.4671]
[1740781446475,80.7,147.53,147.47,11.8918]
[1740781449486,0.063,147.59,147.56,18.64964886]
[1740781449880,0.063,147.59,147.57,5.4211]
[1740781453376,0.063,147.59,147.58,18.64964886]
[1740781454087,195.003,147.69,147.6,25.08674886]
[1740781454296,195.003,147.69,147.6,106.08674886]
[1740781454969,195.003,147.69,147.61,1.6213]
[1740781456199,200.4197,147.69,147.61,1.6213]
[1740781457311,200.4197,147.69,147.63,20.0]
[1740781460703,80.7,147.68,147.61,1.6213]
[1740781460924,80.7,147.68,147.6,6.4371]
[1740781461204,86.96,147.67,147.57,1.5469]
[1740781461509,18.9637,147.65,147.57,1.5469]
[1740781464796,80.7,147.64,147.57,1.5469]
[1740781465005,80.7,147.63,147.57,1.5469]
[1740781465197,5.4193,147.62,147.57,1.5469]
[1740781468802,80.7,147.61,147.53,8.2904]
[1740781468988,86.96,147.61,147.53,8.2904]
[1740781469184,80.7,147.6,147.53,8.2904]
[1740781469492,80.7,147.6,147.53,6.6582]
[1740781469694,80.7,147.59,147.49,8.2904]
[1740781469901,86.27001753,147.59,147.49,8.2904]
[1740781470413,80.7,147.58,147.49,8.2904]
[1740781470711,20.0,147.55,147.49,6.6582]
[1740781470935,99.6778,147.54,147.47,0.03]
[1740781471810,80.7,147.53,147.47,0.03]
[1740781472414,20.0,147.49,147.47,0.03]
[1740781472608,80.7,147.48,147.47,0.03]
[1740781473006,86.1244,147.48,147.47,0.03]
[1740781473641,5.4244,147.48,147.47,0.03]
[1740781473934,7.4244,147.48,147.47,0.03]
[1740781474538,26.07404886,147.48,147.47,0.0001]
[1740781474707,5.4244,147.48,147.47,0.0001]
[1740781474912,5.4241,147.49,147.47,0.0001]
[1740781475112,20.0,147.48,147.47,0.0001]
[1740781475535,5.4241,147.49,147.47,0.0001]
[1740781475740,5.4233,147.51,147.47,0.0001]
[1740781476214,11.683,147.52,147.47,0.0001]
[1740781479537,80.7,147.5,147.47,0.0001]
[1740781480514,80.7,147.49,147.47,0.0001]
[1740781480818,80.7,147.48,147.47,0.0001]
[1740781483938,80.7,147.51,147.47,20.0001]